bitfinex-derivatives/quotes_SOLF0:USTF0_20240824
["timestamp","ask_amount","ask_price","bid_price","bid_amount"]
[1724500194857,3.1686,157.72,157.7,3.2170006]
[1724500200447,0.04770014,157.73,157.71,10.9587]
[1724500201144,0.04770014,157.73,157.72,10.9586]
[1724500201347,0.04770014,157.73,157.72,7.79]
[1724500202547,0.04770014,157.73,157.71,10.9586]
[1724500203255,0.04770014,157.73,157.7,0.0480006]
[1724500203457,7.79,157.72,157.7,0.0480006]
[1724500203652,7.79,157.71,157.7,0.0480006]
[1724500203846,10.9588,157.71,157.7,0.0480006]
[1724500204864,0.04770014,157.73,157.7,0.0480006]
[1724500205452,3.21620014,157.73,157.7,0.0480006]
[1724500205653,3.21620014,157.73,157.7,3.2169006]
[1724500205856,0.04770014,157.73,157.7,0.0480006]
[1724500206848,7.79,157.72,157.7,0.0480006]
[1724500207253,3.1688,157.71,157.7,0.0480006]
[1724500207559,0.04770014,157.73,157.66,69.61152886]
[1724500207755,7.79,157.69,157.66,69.61152886]
[1724500207963,10.9592,157.69,157.66,3.1697]
[1724500208163,10.9592,157.69,157.64,1.2957]
[1724500208353,3.23532857,157.72,157.64,4.4658]
[1724500208556,7.79,157.68,157.66,0.04410765]
[1724500208759,7.79,157.68,157.65,0.04808231]
[1724500209059,10.9595,157.68,157.65,0.04808231]
[1724500209253,3.1695,157.68,157.65,0.04808231]
[1724500209459,10.9595,157.68,157.65,0.04808231]
[1724500209656,10.9595,157.68,157.65,3.21808231]
[1724500210267,3.1695,157.68,157.65,3.21808231]
[1724500210457,0.04530628,157.69,157.65,0.04808231]
[1724500210653,0.04530628,157.69,157.65,7.83808231]
[1724500210857,0.04530628,157.69,157.67,7.79]
[1724500211083,0.04530628,157.69,157.67,3.1694]
[1724500211273,0.04530628,157.69,157.65,0.04808231]
[1724500212465,0.04530628,157.69,157.66,3.1697]
[1724500212466,3.21460628,157.69,157.66,3.1697]
[1724500212962,3.1694,157.68,157.65,3.21798231]
[1724500213270,7.79,157.68,157.65,0.04808231]
[1724500213868,3.1696,157.67,157.65,0.04808231]
[1724500215465,3.1694,157.68,157.65,11.00788231]
[1724500216159,3.1694,157.68,157.67,7.79]
[1724500217267,0.04530628,157.69,157.67,7.79]
[1724500217463,0.04530628,157.69,157.65,0.04808231]
[1724500217464,0.04530628,157.69,157.68,7.79]
[1724500219361,3.21450628,157.69,157.68,7.79]
[1724500219972,0.04530628,157.69,157.68,7.79]
[1724500220670,3.1684,157.73,157.68,7.79]
[1724500220875,3.1684,157.73,157.72,7.79]
[1724500222369,3.1684,157.73,157.71,0.04097671]
[1724500222563,3.1686,157.72,157.71,0.04097671]
[1724500225867,0.04381004,157.74,157.71,0.04097671]
[1724500226515,3.1685,157.73,157.71,0.04097671]
[1724500230384,3.1685,157.73,157.72,7.79]
[1724500230681,0.04381004,157.74,157.72,7.79]
[1724500231272,3.17330746,157.8,157.73,3.1684]
[1724500231475,2.6221,157.83,157.77,7.79]
[1724500231783,3.2260336,157.86,157.8,7.79]
[1724500231980,8.7037,157.87,157.8,7.79]
[1724500232284,3.10149223,157.88,157.82,7.79]
[1724500232485,3.1663,157.84,157.82,7.79]
[1724500232684,3.1663,157.84,157.83,0.04829537]
[1724500233185,3.1658,157.86,157.83,0.04829537]
[1724500233393,3.1658,157.86,157.84,7.79]
[1724500234280,3.1658,157.86,157.83,0.04829537]
[1724500234694,3.1658,157.86,157.85,7.79]
[1724500235282,0.04675849,157.87,157.85,7.79]
[1724500236280,3.1649,157.91,157.86,3.1658]
[1724500236482,3.1649,157.91,157.9,7.79]
[1724500237289,3.1649,157.91,157.89,7.83701345]
[1724500238293,3.165,157.9,157.89,7.83701345]
[1724500238883,3.165,157.9,157.89,0.04701345]
[1724500243201,7.79,157.91,157.83,3.1664]
[1724500243398,7.79,157.91,157.85,7.79]
[1724500244403,0.04598367,157.9,157.86,0.04695397]
[1724500245307,3.1657,157.87,157.86,0.04695397]
[1724500252902,3.1657,157.87,157.86,7.83695397]
[1724500253206,0.04598367,157.9,157.86,7.83695397]
[1724500254303,3.1656,157.87,157.86,7.83695397]
[1724500257000,0.04598367,157.9,157.86,7.83695397]
[1724500257205,0.04598367,157.9,157.89,7.79]
[1724500258600,3.21098367,157.9,157.89,7.79]
[1724500258903,3.21098367,157.9,157.88,7.79]
[1724500262607,3.1652,157.89,157.88,7.79]
[1724500262804,3.1652,157.89,157.86,7.83695397]
[1724500264599,0.04598367,157.9,157.86,7.83695397]
[1724500264809,3.1656,157.87,157.86,0.04695397]
[1724500265506,10.9556,157.87,157.86,0.04695397]
[1724500266115,3.167,157.8,157.79,2.5305]
[1724500266408,7.79,157.84,157.79,2.5305]
[1724500266603,3.347,157.91,157.79,2.5305]
[1724500266901,3.1665,157.83,157.79,9.0651]
[1724500267103,3.21364739,157.83,157.79,9.10616936]
[1724500267314,3.21364739,157.83,157.81,7.79]
[1724500269304,0.04714739,157.83,157.81,7.79]
[1724500269808,3.21354739,157.83,157.81,7.79]
[1724500272215,0.04714739,157.83,157.82,7.79]
[1724500274909,3.21354739,157.83,157.82,7.79]
[1724500275412,0.04714739,157.83,157.82,7.79]
[1724500275813,0.04714739,157.83,157.81,7.79]
[1724500276413,3.21364739,157.83,157.81,7.79]
[1724500276914,0.04714739,157.83,157.79,1.31616936]
[1724500277114,3.1666,157.82,157.79,9.10616936]
[1724500277608,3.1669,157.81,157.79,9.10616936]
[1724500278214,3.1667,157.82,157.79,9.10616936]
[1724500280210,3.1667,157.82,157.8,7.79]
[1724500280812,0.04714739,157.83,157.8,7.79]
[1724500281519,3.1668,157.82,157.8,7.79]
[1724500288719,0.04714739,157.83,157.79,0.04106936]
[1724500288924,7.83714739,157.83,157.79,0.04106936]
[1724500289321,3.167,157.8,157.79,0.04106936]
[1724500290425,3.1681,157.75,157.7,1.2592]
[1724500290629,3.1681,157.75,157.73,7.79]
[1724500293626,0.0468863,157.76,157.73,7.79]
[1724500293627,3.1682,157.74,157.73,7.79]
[1724500294323,3.1684,157.73,157.72,0.04693429]
[1724500296519,3.22996326,157.76,157.72,7.83693429]
[1724500298423,3.1684,157.73,157.72,7.83693429]
[1724500299221,0.0468863,157.76,157.72,7.83693429]
[1724500299532,0.0468863,157.76,157.75,7.79]
[1724500300327,10.9408319,157.85,157.75,15.58]
[1724500300527,7.79,157.85,157.72,1.2387]
[1724500300730,3.1879183,157.84,157.79,7.79]
[1724500301328,0.04777356,157.83,157.81,7.79]
[1724500301533,0.04244817,157.84,157.81,7.79]
[1724500301733,0.04244817,157.84,157.81,0.04797915]
[1724500302029,3.1666,157.82,157.81,7.83797915]
[1724500303124,3.1665,157.83,157.81,7.83797915]
[1724500303830,3.1666,157.82,157.81,7.83797915]
[1724500304225,3.1666,157.82,157.81,0.04797915]
[1724500306432,0.04244817,157.84,157.81,0.04797915]
[1724500306630,3.1664,157.83,157.81,0.04797915]
[1724500306830,3.1664,157.83,157.81,7.83797915]
[1724500308438,3.1664,157.83,157.81,0.04797915]
[1724500309741,3.1666,157.82,157.81,0.04797915]
[1724500318039,0.04244817,157.84,157.81,0.04797915]
[1724500319044,3.1664,157.83,157.81,7.83797915]
[1724500319651,3.1666,157.82,157.81,7.83797915]
[1724500320650,3.1665,157.83,157.81,7.83797915]
[1724500321356,3.20874817,157.84,157.81,7.83797915]
[1724500324758,3.1664,157.83,157.81,7.83797915]
[1724500327064,0.04244817,157.84,157.81,7.83797915]
[1724500327261,0.04244817,157.84,157.81,0.04797915]
[1724500327766,3.1666,157.83,157.81,0.04797915]
[1724500329066,3.1666,157.82,157.81,0.04797915]
[1724500329464,3.1665,157.83,157.81,0.04797915]
[1724500331061,3.1666,157.82,157.81,0.04797915]
[1724500335960,3.1664,157.83,157.81,0.04797915]
[1724500336364,0.04244817,157.84,157.81,3.21467915]
[1724500336575,0.04244817,157.84,157.83,7.79]
[1724500337271,3.20864817,157.84,157.83,7.79]
[1724500339174,3.20864817,157.84,157.81,11.00467915]
[1724500339576,0.04244817,157.84,157.81,0.04797915]
[1724500340477,3.1666,157.83,157.81,0.04797915]
[1724500341772,3.1666,157.83,157.81,7.83797915]
[1724500342173,3.20884817,157.84,157.82,7.79]
[1724500346467,0.04244817,157.84,157.82,10.9566]
[1724500346669,0.04244817,157.84,157.82,7.79]
[1724500348077,0.04244817,157.84,157.81,2.54387915]
[1724500348280,0.04244817,157.84,157.83,7.79]
[1724500351782,0.04244817,157.84,157.83,10.9564]
[1724500351981,7.79,157.92,157.83,7.79]
[1724500352277,7.79,157.92,157.81,2.4959]
[1724500352486,7.79,157.92,157.84,7.79]
[1724500352781,3.1657,157.87,157.84,7.79]
[1724500352975,0.04846974,157.87,157.84,0.04448413]
[1724500354382,3.1659,157.86,157.84,0.04448413]
[1724500355182,3.166,157.85,157.84,0.04448413]
[1724500359090,10.956,157.85,157.84,0.04448413]
[1724500360285,14.19265716,157.85,157.84,0.04448413]
[1724500360690,3.167,157.8,157.77,10.3828]
[1724500361379,3.167,157.8,157.77,9.0362]
[1724500361578,3.20978214,157.8,157.77,9.0362]
[1724500361793,3.20978214,157.8,157.77,9.08365308]
[1724500361993,3.20978214,157.8,157.77,1.29365308]
[1724500362183,0.04278214,157.8,157.77,0.04745308]
[1724500362691,3.1674,157.78,157.77,0.04745308]
[1724500363385,10.9574,157.78,157.77,0.04745308]
[1724500383993,3.1683,157.74,157.71,25.34]
[1724500384202,7.79,157.75,157.7,3.1689]
[1724500384507,7.79,157.75,157.71,3.10866132]
[1724500384707,7.79,157.75,157.69,7.79]
[1724500384918,7.79,157.75,157.69,10.9591]
[1724500385109,3.1685,157.73,157.7,3.14978627]
[1724500385310,3.1685,157.73,157.7,0.04089848]
[1724500386903,3.20919192,157.74,157.72,7.79]
[1724500387309,0.04099192,157.74,157.72,7.79]
[1724500389910,3.20919192,157.74,157.71,3.1688]
[1724500396315,3.1684,157.73,157.7,10.99989848]
[1724500396820,3.1684,157.73,157.7,3.20989848]
[1724500396821,3.1685,157.73,157.7,3.20989848]
[1724500397022,7.83099192,157.74,157.7,0.04089848]
[1724500397616,10.9588,157.71,157.7,0.04089848]
[1724500397921,3.1688,157.71,157.7,0.04089848]
[1724500398416,0.04099192,157.74,157.7,7.83089848]
[1724500398920,0.04099192,157.74,157.71,7.79]
[1724500399321,3.20929192,157.74,157.71,7.79]
[1724500401222,0.04099192,157.74,157.7,0.04089848]
[1724500401823,3.1685,157.73,157.7,3.20989848]
[1724500402218,3.1685,157.73,157.7,0.04089848]
[1724500402824,3.1685,157.73,157.7,3.20989848]
[1724500403514,3.1685,157.73,157.7,4.49749848]
[1724500406129,3.1686,157.72,157.7,1.32849848]
[1724500406328,7.83099192,157.74,157.7,1.32849848]
[1724500407346,3.1688,157.72,157.7,1.32849848]
[1724500412733,3.1688,157.71,157.7,0.04089848]
[1724500413329,10.9588,157.71,157.7,0.04089848]
[1724500418137,3.1688,157.71,157.7,0.04089848]
[1724500419344,3.1686,157.73,157.7,7.83089848]
[1724500420441,3.20929192,157.74,157.7,10.99979848]
[1724500420639,3.20929192,157.74,157.71,1.2615]
[1724500421542,3.1684,157.73,157.71,1.2615]
[1724500421940,0.04099192,157.74,157.71,1.2615]
[1724500422540,3.20939192,157.74,157.71,1.2615]
[1724500423644,3.1685,157.73,157.71,1.2615]
[1724500424948,3.1686,157.72,157.71,1.2615]
[1724500425349,3.1685,157.73,157.71,1.2615]
[1724500425647,0.04099192,157.74,157.71,1.2615]
[1724500425844,3.1685,157.73,157.71,1.2615]
[1724500426945,3.1686,157.72,157.71,1.2615]
[1724500427647,3.1688,157.71,157.7,0.04089848]
[1724500428443,3.1687,157.72,157.7,0.04089848]
[1724500428640,7.79,157.73,157.7,0.04089848]
[1724500429347,3.1688,157.71,157.7,0.04089848]
[1724500439451,10.9588,157.71,157.7,0.04089848]
[1724500440462,3.1688,157.71,157.7,0.04089848]
[1724500440852,10.9588,157.71,157.7,0.04089848]
[1724500448864,3.1696,157.67,157.64,3.1701]
[1724500449065,10.9596,157.67,157.64,3.1701]
[1724500449972,11.00592266,157.67,157.64,3.21285649]
[1724500451670,11.00592266,157.67,157.64,0.04275649]
[1724500453070,3.1699,157.66,157.64,0.04275649]
[1724500458968,3.17,157.65,157.64,0.04275649]
[1724500459166,10.96,157.65,157.64,0.04275649]
[1724500459565,10.96,157.65,157.55,3.8328]
[1724500459566,7.79,157.65,157.55,3.8328]
[1724500459873,7.79,157.6,157.55,3.8328]
[1724500460097,10.9612,157.6,157.57,3.1716]
[1724500460568,11.00270821,157.6,157.57,3.21236052]
[1724500460764,11.00270821,157.6,157.57,0.04076052]
[1724500461367,3.1713,157.59,157.57,0.04076052]
[1724500462268,3.21260821,157.6,157.57,3.21236052]
[1724500464172,11.00260821,157.6,157.57,3.21236052]
[1724500465480,0.04150821,157.6,157.59,7.79]
[1724500465778,7.79,157.66,157.59,7.79]
[1724500466074,3.1707,157.62,157.59,10.9612]
[1724500466670,3.1707,157.62,157.59,11.00172215]
[1724500466871,3.21939173,157.62,157.59,11.00172215]
[1724500468178,9.8149,157.75,157.61,7.79]
[1724500468373,7.79,157.68,157.61,7.79]
[1724500468574,7.79,157.66,157.61,7.79]
[1724500468769,3.1702,157.64,157.61,10.9607]
[1724500469077,3.21032037,157.64,157.61,11.00446781]
[1724500471278,0.04012037,157.64,157.62,3.1706]
[1724500471882,0.04012037,157.64,157.62,4.4572]
[1724500475815,3.1699,157.66,157.63,3.1704]
[1724500476781,3.21199888,157.66,157.63,3.21688852]
[1724500479492,3.21199888,157.66,157.63,0.04648852]
[1724500481889,3.1701,157.65,157.63,0.04648852]
[1724500482391,0.04209888,157.66,157.63,3.21678852]
[1724500483290,3.21199888,157.66,157.63,3.21678852]
[1724500483595,0.04209888,157.66,157.63,3.21678852]
[1724500484299,3.21209888,157.66,157.63,3.21678852]
[1724500488999,3.1701,157.65,157.63,0.04648852]
[1724500490802,3.1702,157.64,157.63,0.04648852]
[1724500491192,3.1701,157.65,157.63,0.04648852]
[1724500498023,0.04209888,157.66,157.63,0.04648852]
[1724500499407,3.1702,157.65,157.63,0.04648852]
[1724500499808,3.1702,157.64,157.63,0.04648852]
[1724500501912,3.1701,157.65,157.63,0.04648852]
[1724500503919,3.1702,157.64,157.63,0.04648852]
[1724500511018,3.1701,157.65,157.63,0.04648852]
[1724500512110,0.04209888,157.66,157.63,3.21688852]
[1724500512316,0.04209888,157.66,157.65,7.79]
[1724500512618,0.04209888,157.66,157.65,3.17]
[1724500512820,0.04209888,157.66,157.63,7.83648852]
[1724500513016,0.04209888,157.66,157.63,11.00688852]
[1724500513220,3.21199888,157.66,157.63,11.00688852]
[1724500515021,3.21199888,157.66,157.63,3.21688852]
[1724500516627,0.04209888,157.66,157.65,10.96]
[1724500519018,3.1693,157.69,157.66,3.1697]
[1724500520027,0.04509771,157.69,157.67,10.9596]
[1724500523845,0.04509771,157.69,157.67,3.1696]
[1724500527236,0.04509771,157.69,157.68,3.1694]
[1724500532343,0.04509771,157.69,157.68,10.9594]
[1724500532541,44.76956676,157.77,157.73,3.1683]
[1724500532840,52.55956676,157.77,157.71,7.79]
[1724500533040,3.1681,157.75,157.71,7.79]
[1724500533242,1.3061,157.79,157.72,7.79]
[1724500533442,3.1676,157.77,157.74,7.79]
[1724500533634,3.21134455,157.77,157.74,11.00196293]
[1724500533836,3.21134455,157.77,157.75,7.79]
[1724500534333,3.21134455,157.77,157.75,10.9578]
[1724500534334,0.04374455,157.77,157.75,10.9578]
[1724500534539,0.04374455,157.77,157.75,7.79]
[1724500534834,0.04374455,157.77,157.75,10.9579]
[1724500536142,0.04374455,157.77,157.76,3.1678]
[1724500536343,0.04374455,157.77,157.76,10.9578]
[1724500539147,0.04374455,157.77,157.76,7.79]
[1724500539547,0.04374455,157.77,157.76,10.9578]
[1724500556356,0.04374455,157.77,157.76,3.1678]
[1724500556657,0.04374455,157.77,157.74,0.04386293]
[1724500556859,0.04374455,157.77,157.75,7.79]
[1724500557855,0.04374455,157.77,157.76,3.1678]
[1724500558157,0.04374455,157.77,157.74,0.04386293]
[1724500558361,0.04374455,157.77,157.75,7.79]
[1724500559358,0.04374455,157.77,157.76,3.1678]
[1724500560760,3.21144455,157.77,157.74,0.04386293]
[1724500561673,0.04374455,157.77,157.74,0.04386293]
[1724500564264,3.21144455,157.77,157.74,0.04386293]
[1724500564463,3.21144455,157.77,157.74,3.21206293]
[1724500565366,3.21144455,157.77,157.74,0.04386293]
[1724500570268,3.1679,157.76,157.74,0.04386293]
[1724500571573,3.21144455,157.77,157.74,0.04386293]
[1724500573972,7.79,157.75,157.55,226.0]
[1724500574286,7.79,157.75,157.59,1.3265]
[1724500574287,7.79,157.66,157.59,1.3265]
[1724500574478,7.79,157.68,157.59,1.3265]
[1724500574779,46.6980147,157.75,157.62,7.79]
[1724500574976,7.79,157.67,157.59,1.3265]
[1724500575181,3.13029185,157.67,157.59,1.3265]
[1724500575395,49.92745463,157.75,157.61,7.83295313]
[1724500575396,1.16511503,157.74,157.61,7.83295313]
[1724500575576,7.79,157.65,157.61,0.04295313]
[1724500575778,7.79,157.63,157.57,4.47632668]
[1724500575972,7.79,157.63,157.57,3.18762668]
[1724500576175,10.9606,157.63,157.61,0.04206352]
[1724500576370,7.83615539,157.62,157.56,7.79]
[1724500577481,7.83615539,157.62,157.57,0.04228227]
[1724500578583,7.79,157.6,157.57,0.04228227]
[1724500581479,10.9612,157.6,157.57,0.04228227]
[1724500584576,3.1712,157.59,157.57,0.04228227]
[1724500586385,7.79,157.6,157.57,0.04228227]
[1724500586588,11.016357,157.6,157.57,0.04228227]
[1724500586778,14.187557,157.6,157.57,0.04228227]
[1724500587180,7.79,157.6,157.44,23.37]
[1724500587387,7.79,157.57,157.5,33.13]
[1724500587681,7.79,157.56,157.5,7.79]
[1724500588105,3.1728,157.52,157.48,48.80707592]
[1724500588393,0.0445374,157.52,157.48,0.04277449]
[1724500588886,7.79,157.51,157.48,0.04277449]
[1724500589285,3.173,157.5,157.48,0.04277449]
[1724500589585,0.0445374,157.52,157.48,0.04277449]
[1724500589783,0.0445374,157.52,157.5,7.79]
[1724500591296,0.0445374,157.52,157.51,3.1728]
[1724500591980,0.9052,157.66,157.51,31.16]
[1724500592185,7.79,157.62,157.55,7.79]
[1724500592387,3.1714,157.59,157.55,7.79]
[1724500592588,7.79,157.6,157.55,7.79]
[1724500592992,0.04521795,157.59,157.56,0.04044238]
[1724500594088,0.04521795,157.59,157.56,11.00224238]
[1724500594717,0.04521795,157.59,157.56,7.83044238]
[1724500595287,3.21651795,157.59,157.56,7.83044238]
[1724500595483,0.04521795,157.59,157.56,7.83044238]
[1724500595688,0.04521795,157.59,157.58,7.79]
[1724500595989,3.1705,157.63,157.58,7.79]
[1724500596194,3.1705,157.63,157.6,7.79]
[1724500597493,3.21515797,157.63,157.6,7.83031247]
[1724500598091,0.04465797,157.63,157.6,7.83031247]
[1724500598309,0.04465797,157.63,157.6,0.04031247]
[1724500598490,3.1706,157.62,157.6,0.04031247]
[1724500604497,0.04465797,157.63,157.6,3.21131247]
[1724500604908,0.04465797,157.63,157.61,3.1707]
[1724500605092,0.04465797,157.63,157.62,7.79]
[1724500605316,7.79,157.7,157.62,7.79]
[1724500605497,3.1699,157.66,157.63,3.1703]
[1724500605795,3.1699,157.66,157.62,7.79]
[1724500606299,3.17,157.65,157.62,0.04067469]
[1724500606892,3.17,157.65,157.62,3.21117469]
[1724500613403,3.1702,157.64,157.62,3.21117469]
[1724500613591,0.04501539,157.66,157.62,3.21117469]
[1724500613792,3.1701,157.65,157.62,3.21117469]
[1724500619394,0.04501539,157.66,157.64,3.1702]
[1724500619599,0.04501539,157.66,157.62,7.83067469]
[1724500620502,11.00481539,157.66,157.62,0.04067469]
[1724500620705,7.83501539,157.66,157.62,0.04067469]
[1724500621096,3.1701,157.65,157.62,3.21117469]
[1724500621504,0.04501539,157.66,157.62,0.04067469]
[1724500621713,3.21501539,157.66,157.63,3.1703]
[1724500622209,0.04501539,157.66,157.62,0.04067469]
[1724500623109,0.04501539,157.66,157.62,3.21117469]
[1724500623110,3.17,157.65,157.62,3.21117469]
[1724500630703,3.1704,157.63,157.62,0.04067469]
[1724500631503,3.1703,157.64,157.62,0.04067469]
[1724500631707,7.83501539,157.66,157.62,3.21127469]
[1724500631907,0.04501539,157.66,157.62,11.00127469]
[1724500632912,0.04501539,157.66,157.63,10.9604]
[1724500633213,0.04501539,157.66,157.65,7.79]
[1724500633413,0.04501539,157.66,157.65,10.96]
[1724500634920,0.04501539,157.66,157.65,7.79]
[1724500635122,10.93460125,157.73,157.65,7.79]
[1724500635316,7.79,157.73,157.67,7.79]
[1724500635516,10.92980053,157.73,157.67,7.79]
[1724500636013,7.79,157.73,157.67,7.79]
[1724500636322,0.04861805,157.72,157.68,0.04253452]
[1724500636619,0.04367101,157.72,157.68,0.04253452]
[1724500636834,7.83367101,157.72,157.68,0.04253452]
[1724500638015,3.1692,157.7,157.68,0.04253452]
[1724500638822,3.1689,157.71,157.69,7.79]
[1724500639322,0.04367101,157.72,157.68,0.04253452]
[1724500639711,3.169,157.71,157.68,0.04253452]
[1724500640118,7.79,157.71,157.68,0.04253452]
[1724500640321,0.04367101,157.72,157.68,0.04253452]
[1724500640322,3.1692,157.7,157.68,0.04253452]
[1724500640923,3.1689,157.71,157.68,0.04253452]
[1724500641514,0.04367101,157.72,157.68,0.04253452]
[1724500641720,7.83367101,157.72,157.68,0.04253452]
[1724500642117,3.1692,157.7,157.68,0.04253452]
[1724500643236,3.1692,157.69,157.68,0.04253452]
[1724500674958,3.1692,157.7,157.68,0.04253452]
[1724500675159,3.1692,157.7,157.68,7.83253452]
[1724500677356,3.1689,157.71,157.68,11.00193452]
[1724500677556,0.04367101,157.72,157.69,7.79]
[1724500677758,0.04367101,157.72,157.71,7.79]
[1724500678463,0.04367101,157.72,157.71,10.9588]
[1724500679160,1085.94549,157.8,157.73,3.1684]
[1724500679461,1093.73549,157.8,157.73,10.9584]
[1724500679663,3.1679,157.76,157.73,10.9584]
[1724500680163,3.21319249,157.76,157.73,11.00137493]
[1724500680367,7.79,157.75,157.73,0.04297493]
[1724500680659,7.79,157.74,157.73,0.04297493]
[1724500680856,7.79,157.74,157.64,3.7427]
[1724500681057,7.79,157.7,157.64,11.5327]
[1724500681557,3.1693,157.69,157.66,3.1698]
[1724500681959,3.1693,157.69,157.66,0.04493944]
[1724500681960,0.04374891,157.69,157.66,0.04493944]
[1724500682163,3.1696,157.68,157.66,0.04493944]
[1724500682559,0.04374891,157.69,157.66,0.04493944]
[1724500684461,3.1694,157.68,157.66,0.04493944]
[1724500684756,0.04374891,157.69,157.66,0.04493944]
[1724500685271,7.83374891,157.69,157.66,0.04493944]
[1724500685662,3.1694,157.68,157.66,0.04493944]
[1724500686169,3.1696,157.67,157.66,0.04493944]
[1724500689767,10.9596,157.67,157.66,0.04493944]
[1724500690066,7.79,157.67,157.6,2.5871]
[1724500690369,3.17282412,157.72,157.6,13.5481]
[1724500690571,7.79,157.67,157.6,13.5481]
[1724500690964,3.1705,157.63,157.6,10.3771]
[1724500691165,3.21861329,157.63,157.6,10.42208989]
[1724500691865,3.21861329,157.63,157.6,0.04498989]
[1724500691866,3.1708,157.62,157.6,0.04498989]
[1724500693572,3.21851329,157.63,157.6,0.04498989]
[1724500693765,3.21851329,157.63,157.6,11.00598989]
[1724500696674,3.21851329,157.63,157.6,3.21598989]
[1724500703885,0.04811329,157.63,157.61,10.9608]
[1724500704377,0.04811329,157.63,157.62,10.9606]
[1724500707285,0.04811329,157.63,157.62,7.79]
[1724500709277,0.04811329,157.63,157.62,10.9606]
[1724500712285,0.04811329,157.63,157.62,3.1706]
[1724500712489,0.04811329,157.63,157.61,3.1708]
[1724500712785,0.04811329,157.63,157.6,0.04498989]
[1724500714492,3.1706,157.62,157.6,0.04498989]
[1724500714688,0.04811329,157.63,157.6,0.04498989]
[1724500714883,3.1708,157.62,157.6,0.04498989]
[1724500715084,0.04811329,157.63,157.6,0.04498989]
[1724500715590,3.1708,157.62,157.6,0.04498989]
[1724500716286,10.9608,157.61,157.6,0.04498989]
[1724500719390,3.1716,157.58,157.55,3.172]
[1724500719589,7.79,157.59,157.54,1.3468]
[1724500720092,3.1715,157.58,157.54,4.5189]
[1724500720388,3.21247518,157.58,157.54,4.56430327]
[1724500720586,3.172,157.55,157.54,0.04540327]
[1724500720792,7.79,157.57,157.54,0.04540327]
[1724500721389,3.1719,157.56,157.54,0.04540327]
[1724500721894,3.1719,157.56,157.54,7.83540327]
[1724500728589,3.172,157.55,157.54,0.04540327]
[1724500740298,10.962,157.55,157.54,0.04540327]
[1724500741994,3.172,157.55,157.54,0.04540327]
[1724500743411,10.962,157.55,157.54,0.04540327]
[1724500746605,3.172,157.55,157.54,0.04540327]
[1724500746806,10.962,157.55,157.54,0.04540327]
[1724500748408,7.79,157.55,157.47,5.6789]
[1724500748610,7.79,157.52,157.47,5.6789]
[1724500749011,3.1735,157.48,157.46,70.16974064]
[1724500749502,3.1736,157.47,157.46,70.16974064]
[1724500750307,3.1738,157.46,157.45,0.04487166]
[1724500758126,7.79,157.48,157.45,0.04487166]
[1724500758923,3.1738,157.46,157.45,0.04487166]
[1724500759721,10.9638,157.46,157.45,0.04487166]
[1724500771730,7.79,157.46,157.38,63.3759321]
[1724500771930,7.79,157.42,157.38,63.3759321]
[1724500772338,3.1748,157.42,157.39,3.1752]
[1724500772740,3.22333786,157.42,157.39,3.21823529]
[1724500775840,3.1749,157.41,157.39,0.04303529]
[1724500778940,7.79,157.4,157.27,7.79]
[1724500779144,7.79,157.38,157.29,1.238]
[1724500779344,7.79,157.38,157.31,7.79]
[1724500779945,0.04709836,157.36,157.33,0.0473945]
[1724500780146,0.04072416,157.36,157.33,0.04793948]
[1724500782144,3.1763,157.34,157.33,0.04793948]
[1724500783437,10.9663,157.34,157.33,0.04793948]
[1724500784941,3.1763,157.34,157.33,0.04793948]
[1724500787140,10.9663,157.34,157.33,0.04793948]
[1724500788948,3.1763,157.34,157.33,0.04793948]
[1724500792242,0.04072416,157.36,157.33,0.04793948]
[1724500792447,3.19408195,157.45,157.33,7.79]
[1724500792647,7.79,157.4,157.33,7.79]
[1724500792844,3.176,157.36,157.34,1.302]
[1724500793046,7.79,157.4,157.35,1.2605]
[1724500793548,0.04044756,157.39,157.36,0.0449784]
[1724500793944,3.1757,157.37,157.36,0.0449784]
[1724500795455,10.9657,157.37,157.36,0.0449784]
[1724500799454,3.1757,157.37,157.36,0.0449784]